fUST/lending_fUST_20260605
["ID","MTS","AMOUNT","RATE_DAILY","PERIOD"]
[424106932,1780596642000,-500.0,0.00013425,2]
[424106858,1780596642000,-183.1692234,0.00011961,2]
[424106856,1780596642000,-625.871424,0.00011782,2]
[424106862,1780596642000,-3591.36956499,0.00012138,2]
[424106864,1780596642000,-625.871424,0.00012222,2]
[424106868,1780596642000,-1670.8,0.00012329,2]
[424106854,1780596642000,-2087.0,0.00011556,2]
[424106852,1780596642000,-250.0,0.00011358,2]
[424106860,1780596642000,-360.59,0.00012083,2]
[424106904,1780596642000,-151.5,0.00013425,2]
[424106866,1780596642000,-268.0,0.000123,2]
[424106870,1780596642000,-1392.34,0.00012329,2]
[424106880,1780596642000,-625.871424,0.00012663,2]
[424106874,1780596642000,-966.9,0.00012329,2]
[424106884,1780596642000,-160.0,0.00013036,2]
[424106876,1780596642000,-805.75,0.00012329,2]
[424106888,1780596642000,-1154.13426616,0.000132,2]
[424106878,1780596642000,-671.46,0.00012329,2]
[424106886,1780596642000,-767.92208879,0.00013036,2]
[424106890,1780596642000,-1154.13426616,0.000133,2]
[424106872,1780596642000,-1160.28,0.00012329,2]
[424106943,1780596642000,-1154.13426616,0.000136,2]
[424106912,1780596642000,-151.5,0.00013425,2]
[424106945,1780596642000,-591.80706418,0.00013697,2]
[424106995,1780596642000,-501.54227944,0.00013698,2]
[424106999,1780596642000,-502.08940335,0.00013698,2]
[424107005,1780596642000,-331.89900247,0.00013698,2]
[424107003,1780596642000,-500.0,0.00013698,2]
[424107036,1780596642000,-306.78920926,0.00013698,2]
[424107038,1780596642000,-158.72660552,0.00013698,2]
[424107040,1780596642000,-342.95750997,0.00013698,2]
[424107042,1780596642000,-242.28553603,0.00013698,2]
[424107044,1780596642000,-257.71446397,0.00013698,2]
[424106997,1780596642000,-500.0,0.00013698,2]
[424107030,1780596642000,-169.12012647,0.00013698,2]
[424107034,1780596642000,-500.0,0.00013698,2]
[424107048,1780596642000,-110.41064458,0.00013698,2]
[424107050,1780596642000,-526.3273026,0.00013698,2]
[424107051,1780596642000,-500.0,0.00013698,2]
[424107046,1780596642000,-500.0,0.00013698,2]
[424107053,1780596642000,-500.0,0.00013698,2]
[424107057,1780596642000,-313.70931122,0.00013698,2]
[424107055,1780596642000,-500.0,0.00013698,2]
[424106947,1780596642000,-501.93811449,0.00013698,2]
[424107032,1780596642000,-500.0,0.00013698,2]
[424106993,1780596642000,-443.69171298,0.00013698,2]
[424107001,1780596642000,-500.0,0.00013698,2]
[424106983,1780596642000,-500.0,0.00013698,2]
[424106949,1780596642000,-500.83054437,0.00013698,2]
[424106951,1780596642000,-500.0,0.00013698,2]
[424106953,1780596642000,-311.59638269,0.00013698,2]
[424106964,1780596642000,-500.0,0.00013698,2]
[424106965,1780596642000,-553.25998596,0.00013698,2]
[424106966,1780596642000,-495.93313916,0.00013698,2]
[424106991,1780596642000,-500.0,0.00013698,2]
[424106962,1780596642000,-501.20866476,0.00013698,2]
[424106955,1780596642000,-574.31845743,0.00013698,2]
[424106957,1780596642000,-500.5925273,0.00013698,2]
[424106972,1780596642000,-533.25804553,0.00013698,2]
[424106960,1780596642000,-501.96590584,0.00013698,2]
[424106974,1780596642000,-500.73240677,0.00013698,2]
[424106977,1780596642000,-500.0,0.00013698,2]
[424106968,1780596642000,-500.0,0.00013698,2]
[424106976,1780596642000,-502.26950326,0.00013698,2]
[424106987,1780596642000,-187.60722036,0.00013698,2]
[424106979,1780596642000,-504.46886961,0.00013698,2]
[424106985,1780596642000,-434.89486554,0.00013698,2]
[424106981,1780596642000,-504.82657578,0.00013698,2]
[424106970,1780596642000,-501.48438737,0.00013698,2]
[424106989,1780596642000,-505.46986186,0.00013698,2]
[424107128,1780596643000,-364.01258467,0.00013698,2]
[424107130,1780596643000,-500.0,0.00013698,2]
[424107126,1780596643000,-500.0,0.00013698,2]
[424107134,1780596643000,-300.26055744,0.00013698,2]
[424107116,1780596643000,-186.29068878,0.00013698,2]
[424107121,1780596643000,-434.09868878,0.00013698,2]
[424107118,1780596643000,-65.90131122,0.00013698,2]
[424107132,1780596643000,-500.0,0.00013698,2]
[424107125,1780596643000,-500.0,0.00013698,2]
[424107140,1780596643000,-500.0,0.00013698,2]
[424107123,1780596643000,-628.84187674,0.00013698,2]
[424107142,1780596643000,-500.0,0.00013698,2]
[424107139,1780596643000,-199.73944256,0.00013698,2]
[424107153,1780596643000,-500.0,0.00013698,2]
[424107149,1780596643000,-500.54679965,0.00013698,2]
[424107146,1780596643000,-279.33807452,0.00013698,2]
[424107154,1780596643000,-500.0,0.00013698,2]
[424107150,1780596643000,-500.0,0.00013698,2]
[424107147,1780596643000,-500.0,0.00013698,2]
[424107144,1780596643000,-541.99996778,0.00013698,2]
[424107143,1780596643000,-500.0,0.00013698,2]
[424107145,1780596643000,-500.0,0.00013698,2]
[424107148,1780596643000,-500.0,0.00013698,2]
[424107199,1780596644000,-500.0,0.00013698,2]
[424107205,1780596644000,-500.0,0.00013698,2]
[424107207,1780596644000,-500.0,0.00013698,2]
[424107201,1780596644000,-500.0,0.00013698,2]
[424107198,1780596644000,-500.0,0.00013698,2]
[424107186,1780596644000,-500.0,0.00013698,2]
[424107191,1780596644000,-500.0,0.00013698,2]
[424107189,1780596644000,-501.90295697,0.00013698,2]
[424107188,1780596644000,-500.0,0.00013698,2]
[424107196,1780596644000,-500.0,0.00013698,2]
[424107195,1780596644000,-500.0,0.00013698,2]
[424107200,1780596644000,-500.2135633,0.00013698,2]
[424107210,1780596644000,-503.22068952,0.00013698,2]
[424107202,1780596644000,-500.0,0.00013698,2]
[424107206,1780596644000,-508.25364698,0.00013698,2]
[424107208,1780596644000,-500.0,0.00013698,2]
[424107203,1780596644000,-500.0,0.00013698,2]
[424107187,1780596644000,-459.73859093,0.00013698,2]
[424107218,1780596644000,-500.0,0.00013698,2]
[424107220,1780596644000,-500.0,0.00013698,2]
[424107219,1780596644000,-500.0,0.00013698,2]
[424107209,1780596644000,-500.0,0.00013698,2]
[424107211,1780596644000,-500.0,0.00013698,2]
[424107213,1780596644000,-561.00951653,0.00013698,2]
[424107215,1780596644000,-500.0,0.00013698,2]
[424107212,1780596644000,-500.0,0.00013698,2]
[424107204,1780596644000,-500.0,0.00013698,2]
[424107192,1780596644000,-515.93941272,0.00013698,2]
[424107177,1780596644000,-500.0,0.00013698,2]
[424107184,1780596644000,-500.0,0.00013698,2]
[424107214,1780596644000,-500.0,0.00013698,2]
[424107157,1780596644000,-500.0,0.00013698,2]
[424107167,1780596644000,-500.0,0.00013698,2]
[424107156,1780596644000,-514.95097337,0.00013698,2]
[424107168,1780596644000,-501.33494906,0.00013698,2]
[424107158,1780596644000,-453.42097608,0.00013698,2]
[424107159,1780596644000,-455.23584896,0.00013698,2]
[424107166,1780596644000,-500.0,0.00013698,2]
[424107165,1780596644000,-500.98498488,0.00013698,2]
[424107160,1780596644000,-500.0,0.00013698,2]
[424107161,1780596644000,-500.0,0.00013698,2]
[424107164,1780596644000,-500.0,0.00013698,2]
[424107162,1780596644000,-500.0,0.00013698,2]
[424107163,1780596644000,-500.0,0.00013698,2]
[424107172,1780596644000,-500.0,0.00013698,2]
[424107169,1780596644000,-500.0,0.00013698,2]
[424107180,1780596644000,-500.0,0.00013698,2]
[424107179,1780596644000,-502.71259864,0.00013698,2]
[424107175,1780596644000,-500.0,0.00013698,2]
[424107170,1780596644000,-500.0,0.00013698,2]
[424107171,1780596644000,-500.0,0.00013698,2]
[424107174,1780596644000,-500.0,0.00013698,2]
[424107173,1780596644000,-500.0,0.00013698,2]
[424107178,1780596644000,-500.0,0.00013698,2]
[424107176,1780596644000,-501.98033126,0.00013698,2]
[424107193,1780596644000,-500.0,0.00013698,2]
[424107194,1780596644000,-500.0,0.00013698,2]
[424107182,1780596644000,-210.83145158,0.00013698,2]
[424107216,1780596644000,-500.0,0.00013698,2]
[424107271,1780596644000,-501.2765277,0.00013698,2]
[424107221,1780596644000,-412.02867537,0.00013698,2]
[424107257,1780596644000,-500.97763637,0.00013698,2]
[424107249,1780596644000,-500.0,0.00013698,2]
[424107255,1780596644000,-500.0,0.00013698,2]
[424107256,1780596644000,-500.22476499,0.00013698,2]
[424107254,1780596644000,-500.0,0.00013698,2]
[424107259,1780596644000,-505.6434876,0.00013698,2]
[424107250,1780596644000,-514.17666135,0.00013698,2]
[424107261,1780596644000,-500.0,0.00013698,2]
[424107262,1780596644000,-460.4,0.00013698,2]
[424107265,1780596644000,-500.0,0.00013698,2]
[424107279,1780596644000,-500.0,0.00013698,2]
[424107266,1780596644000,-500.0,0.00013698,2]
[424107264,1780596644000,-222.84851237,0.00013698,2]
[424107260,1780596644000,-500.0,0.00013698,2]
[424107263,1780596644000,-500.0,0.00013698,2]
[424107268,1780596644000,-500.0,0.00013698,2]
[424107267,1780596644000,-502.12331871,0.00013698,2]
[424107269,1780596644000,-515.68644874,0.00013698,2]
[424107270,1780596644000,-500.0,0.00013698,2]
[424107272,1780596644000,-500.0,0.00013698,2]
[424107280,1780596644000,-28.37089654,0.00013698,2]
[424107274,1780596644000,-369.28107494,0.00013698,2]
[424107273,1780596644000,-500.0,0.00013698,2]
[424107277,1780596644000,-506.90328137,0.00013698,2]
[424107275,1780596644000,-501.78009093,0.00013698,2]
[424107278,1780596644000,-501.25476523,0.00013698,2]
[424107217,1780596644000,-500.53177417,0.00013698,2]
[424107253,1780596644000,-196.61921978,0.00013698,2]
[424107258,1780596644000,-500.0,0.00013698,2]
[424107276,1780596644000,-508.57284556,0.00013698,2]
[424107248,1780596644000,-500.0,0.00013698,2]
[424107224,1780596644000,-500.0,0.00013698,2]
[424107225,1780596644000,-500.72867244,0.00013698,2]
[424107231,1780596644000,-500.0,0.00013698,2]
[424107222,1780596644000,-500.0,0.00013698,2]
[424107230,1780596644000,-500.0,0.00013698,2]
[424107226,1780596644000,-1000.0,0.00013698,2]
[424107223,1780596644000,-500.0,0.00013698,2]
[424107252,1780596644000,-500.0,0.00013698,2]
[424107227,1780596644000,-500.0,0.00013698,2]
[424107232,1780596644000,-500.0,0.00013698,2]
[424107228,1780596644000,-500.55950547,0.00013698,2]
[424107229,1780596644000,-500.0,0.00013698,2]
[424107245,1780596644000,-500.0,0.00013698,2]
[424107233,1780596644000,-500.0,0.00013698,2]
[424107235,1780596644000,-500.9550893,0.00013698,2]
[424107251,1780596644000,-501.1634648,0.00013698,2]
[424107247,1780596644000,-501.25999049,0.00013698,2]
[424107241,1780596644000,-500.0,0.00013698,2]
[424107242,1780596644000,-500.0,0.00013698,2]
[424107243,1780596644000,-500.0,0.00013698,2]
[424107239,1780596644000,-502.71963525,0.00013698,2]
[424107244,1780596644000,-500.0,0.00013698,2]
[424107238,1780596644000,-500.0,0.00013698,2]
[424107237,1780596644000,-500.0,0.00013698,2]
[424107236,1780596644000,-500.0,0.00013698,2]
[424107246,1780596644000,-580.59028991,0.00013698,2]
[424107234,1780596644000,-500.0,0.00013698,2]
[424107240,1780596644000,-501.43343897,0.00013698,2]
[424107319,1780596645000,-500.0,0.00013698,2]
[424107315,1780596645000,-500.0,0.00013698,2]
[424107317,1780596645000,-500.0,0.00013698,2]
[424107320,1780596645000,-401.57837001,0.00013698,2]
[424107321,1780596645000,-500.0,0.00013698,2]
[424107313,1780596645000,-500.0,0.00013698,2]
[424107318,1780596645000,-500.0,0.00013698,2]
[424107310,1780596645000,-501.41248628,0.00013698,2]
[424107312,1780596645000,-500.0,0.00013698,2]
[424107314,1780596645000,-1352.33,0.00013698,2]
[424107316,1780596645000,-500.0,0.00013698,2]
[424107323,1780596645000,-500.0,0.00013698,2]
[424107336,1780596645000,-500.0,0.00013698,2]
[424107330,1780596645000,-500.0,0.00013698,2]
[424107331,1780596645000,-501.88689287,0.00013698,2]
[424107334,1780596645000,-471.71888118,0.00013698,2]
[424107332,1780596645000,-501.34269705,0.00013698,2]
[424107322,1780596645000,-501.652606,0.00013698,2]
[424107333,1780596645000,-500.0,0.00013698,2]
[424107328,1780596645000,-500.0,0.00013698,2]
[424107335,1780596645000,-500.0,0.00013698,2]
[424107324,1780596645000,-502.55814815,0.00013698,2]
[424107326,1780596645000,-500.0,0.00013698,2]
[424107325,1780596645000,-500.0,0.00013698,2]
[424107309,1780596645000,-500.0,0.00013698,2]
[424107329,1780596645000,-500.0,0.00013698,2]
[424107311,1780596645000,-501.00372395,0.00013698,2]
[424107295,1780596645000,-571.80484766,0.00013698,2]
[424107299,1780596645000,-501.20150084,0.00013698,2]
[424107337,1780596645000,-500.0,0.00013698,2]
[424107281,1780596645000,-471.62910346,0.00013698,2]
[424107282,1780596645000,-541.1633796,0.00013698,2]
[424107283,1780596645000,-501.31517033,0.00013698,2]
[424107285,1780596645000,-500.0,0.00013698,2]
[424107287,1780596645000,-500.0,0.00013698,2]
[424107286,1780596645000,-500.0,0.00013698,2]
[424107284,1780596645000,-330.63343292,0.00013698,2]
[424107290,1780596645000,-500.0,0.00013698,2]
[424107289,1780596645000,-213.65368603,0.00013698,2]
[424107294,1780596645000,-500.0,0.00013698,2]
[424107291,1780596645000,-500.950916,0.00013698,2]
[424107308,1780596645000,-500.0,0.00013698,2]
[424107293,1780596645000,-500.0,0.00013698,2]
[424107292,1780596645000,-501.73756425,0.00013698,2]
[424107300,1780596645000,-500.07914957,0.00013698,2]
[424107307,1780596645000,-500.0,0.00013698,2]
[424107306,1780596645000,-514.10703286,0.00013698,2]
[424107297,1780596645000,-500.72295628,0.00013698,2]
[424107296,1780596645000,-500.0,0.00013698,2]
[424107303,1780596645000,-501.07696196,0.00013698,2]
[424107302,1780596645000,-500.0,0.00013698,2]
[424107301,1780596645000,-500.0,0.00013698,2]
[424107305,1780596645000,-500.0,0.00013698,2]
[424107298,1780596645000,-502.56030796,0.00013698,2]
[424107304,1780596645000,-500.0,0.00013698,2]
[424107288,1780596645000,-644.85289094,0.00013698,2]
[424107347,1780596645000,-470.23727594,0.00013698,2]
[424107327,1780596645000,-578.77924058,0.00013698,2]
[424107346,1780596645000,-500.0,0.00013698,2]
[424107367,1780596645000,-500.0,0.00013698,2]
[424107369,1780596645000,-524.99,0.00013698,2]
[424107372,1780596645000,-500.0,0.00013698,2]
[424107373,1780596645000,-500.79986804,0.00013698,2]
[424107376,1780596645000,-501.35656876,0.00013698,2]
[424107386,1780596645000,-500.40219254,0.00013698,2]
[424107375,1780596645000,-500.98976142,0.00013698,2]
[424107380,1780596645000,-500.0,0.00013698,2]
[424107377,1780596645000,-500.0,0.00013698,2]
[424107378,1780596645000,-473.53087757,0.00013698,2]
[424107379,1780596645000,-500.0,0.00013698,2]
[424107384,1780596645000,-289.09431114,0.00013698,2]
[424107374,1780596645000,-502.91711668,0.00013698,2]
[424107382,1780596645000,-500.0,0.00013698,2]
[424107383,1780596645000,-1000.0,0.00013698,2]
[424107387,1780596645000,-501.70596363,0.00013698,2]
[424107393,1780596645000,-500.0,0.00013698,2]
[424107389,1780596645000,-500.0,0.00013698,2]
[424107388,1780596645000,-437.81253011,0.00013698,2]
[424107395,1780596645000,-500.0,0.00013698,2]
[424107392,1780596645000,-500.0,0.00013698,2]
[424107391,1780596645000,-500.0,0.00013698,2]
[424107390,1780596645000,-500.0,0.00013698,2]
[424107394,1780596645000,-502.97317828,0.00013698,2]
[424107344,1780596645000,-481.80642524,0.00013698,2]
[424107396,1780596645000,-500.0,0.00013698,2]
[424107385,1780596645000,-500.0,0.00013698,2]
[424107368,1780596645000,-500.0,0.00013698,2]
[424107381,1780596645000,-500.0,0.00013698,2]
[424107370,1780596645000,-500.0,0.00013698,2]
[424107349,1780596645000,-501.08515855,0.00013698,2]
[424107371,1780596645000,-500.0,0.00013698,2]
[424107345,1780596645000,-501.24458947,0.00013698,2]
[424107338,1780596645000,-818.72,0.00013698,2]
[424107343,1780596645000,-500.0,0.00013698,2]
[424107341,1780596645000,-500.0,0.00013698,2]
[424107342,1780596645000,-500.0,0.00013698,2]
[424107340,1780596645000,-503.16141069,0.00013698,2]
[424107348,1780596645000,-501.18776409,0.00013698,2]
[424107353,1780596645000,-501.02643638,0.00013698,2]
[424107362,1780596645000,-500.7860782,0.00013698,2]
[424107361,1780596645000,-500.4817354,0.00013698,2]
[424107351,1780596645000,-500.0,0.00013698,2]
[424107339,1780596645000,-500.0,0.00013698,2]
[424107350,1780596645000,-500.0,0.00013698,2]
[424107364,1780596645000,-546.467596,0.00013698,2]
[424107366,1780596645000,-500.0,0.00013698,2]
[424107365,1780596645000,-501.28037089,0.00013698,2]
[424107363,1780596645000,-500.0,0.00013698,2]
[424107358,1780596645000,-500.0,0.00013698,2]
[424107352,1780596645000,-500.0,0.00013698,2]
[424107355,1780596645000,-502.20139381,0.00013698,2]
[424107354,1780596645000,-500.0,0.00013698,2]
[424107359,1780596645000,-501.42836215,0.00013698,2]
[424107360,1780596645000,-500.84127414,0.00013698,2]
[424107357,1780596645000,-500.0,0.00013698,2]
[424107356,1780596645000,-635.2718964,0.00013698,2]
[424107440,1780596646000,-500.0,0.00013698,2]
[424107441,1780596646000,-500.0,0.00013698,2]
[424107443,1780596646000,-500.0,0.00013698,2]
[424107444,1780596646000,-500.0,0.00013698,2]
[424107437,1780596646000,-501.40480013,0.00013698,2]
[424107432,1780596646000,-500.0,0.00013698,2]
[424107436,1780596646000,-500.0,0.00013698,2]
[424107433,1780596646000,-500.0,0.00013698,2]
[424107434,1780596646000,-500.0,0.00013698,2]
[424107429,1780596646000,-500.0,0.00013698,2]
[424107430,1780596646000,-500.08013511,0.00013698,2]
[424107446,1780596646000,-500.65037781,0.00013698,2]
[424107435,1780596646000,-563.73,0.00013698,2]
[424107445,1780596646000,-500.0,0.00013698,2]
[424107457,1780596646000,-500.59247305,0.00013698,2]
[424107450,1780596646000,-573.8235138,0.00013698,2]
[424107454,1780596646000,-500.0,0.00013698,2]
[424107452,1780596646000,-490.0,0.00013698,2]
[424107449,1780596646000,-500.0,0.00013698,2]
[424107453,1780596646000,-500.91146943,0.00013698,2]
[424107451,1780596646000,-500.0,0.00013698,2]
[424107448,1780596646000,-500.0,0.00013698,2]
[424107456,1780596646000,-500.0,0.00013698,2]
[424107466,1780596646000,-500.0,0.00013698,2]
[424107467,1780596646000,-500.0,0.00013698,2]
[424107458,1780596646000,-500.0,0.00013698,2]
[424107455,1780596646000,-500.0,0.00013698,2]
[424107461,1780596646000,-500.0,0.00013698,2]
[424107431,1780596646000,-500.0,0.00013698,2]
[424107447,1780596646000,-500.0,0.00013698,2]
[424107427,1780596646000,-486.61253169,0.00013698,2]
[424107402,1780596646000,-574.71,0.00013698,2]
[424107428,1780596646000,-500.0,0.00013698,2]
[424107459,1780596646000,-500.0,0.00013698,2]
[424107398,1780596646000,-500.0,0.00013698,2]
[424107397,1780596646000,-500.0,0.00013698,2]
[424107400,1780596646000,-500.0,0.00013698,2]
[424107411,1780596646000,-501.04964608,0.00013698,2]
[424107401,1780596646000,-500.0,0.00013698,2]
[424107405,1780596646000,-500.0,0.00013698,2]
[424107404,1780596646000,-500.0,0.00013698,2]
[424107399,1780596646000,-500.0,0.00013698,2]
[424107410,1780596646000,-500.36880453,0.00013698,2]
[424107403,1780596646000,-500.0,0.00013698,2]
[424107409,1780596646000,-500.0,0.00013698,2]
[424107408,1780596646000,-500.0,0.00013698,2]
[424107406,1780596646000,-500.0,0.00013698,2]
[424107439,1780596646000,-500.0,0.00013698,2]
[424107407,1780596646000,-500.0,0.00013698,2]
[424107414,1780596646000,-990.48,0.00013698,2]
[424107416,1780596646000,-500.0,0.00013698,2]
[424107418,1780596646000,-508.18888521,0.00013698,2]
[424107415,1780596646000,-500.0,0.00013698,2]
[424107417,1780596646000,-520.30437344,0.00013698,2]
[424107420,1780596646000,-500.0,0.00013698,2]
[424107426,1780596646000,-3630.11,0.00013698,2]
[424107413,1780596646000,-534.44284069,0.00013698,2]
[424107424,1780596646000,-500.0,0.00013698,2]
[424107421,1780596646000,-491.80895643,0.00013698,2]
[424107423,1780596646000,-500.37576945,0.00013698,2]
[424107425,1780596646000,-1238.79,0.00013698,2]
[424107422,1780596646000,-440.32266565,0.00013698,2]
[424107438,1780596646000,-500.0,0.00013698,2]
[424107412,1780596646000,-500.0,0.00013698,2]
[424107465,1780596646000,-500.0,0.00013698,2]
[424107513,1780596646000,-500.0,0.00013972,2]
[424107463,1780596646000,-500.0,0.00013698,2]
[424107501,1780596646000,-600.0,0.00013868,2]
[424107503,1780596646000,-2704.58095364,0.00013941,2]
[424107506,1780596646000,-500.0,0.00013972,2]
[424107504,1780596646000,-167.76444244,0.00013954,2]
[424107498,1780596646000,-530.591778,0.00013736,2]
[424107505,1780596646000,-500.0,0.00013972,2]
[424107507,1780596646000,-500.0,0.00013972,2]
[424107509,1780596646000,-500.0,0.00013972,2]
[424107517,1780596646000,-500.0,0.00013972,2]
[424107520,1780596646000,-500.0,0.00013972,2]
[424107519,1780596646000,-500.0,0.00013972,2]
[424107518,1780596646000,-500.0,0.00013972,2]
[424107522,1780596646000,-500.0,0.00013972,2]
[424107508,1780596646000,-500.0,0.00013972,2]
[424107510,1780596646000,-500.0,0.00013972,2]
[424107511,1780596646000,-500.0,0.00013972,2]
[424107514,1780596646000,-500.54883908,0.00013972,2]
[424107515,1780596646000,-500.0,0.00013972,2]
[424107512,1780596646000,-500.0,0.00013972,2]
[424107516,1780596646000,-500.0,0.00013972,2]
[424107526,1780596646000,-571.31064015,0.00013972,2]
[424107524,1780596646000,-236.81966429,0.00013972,2]
[424107525,1780596646000,-500.0,0.00013972,2]
[424107527,1780596646000,-500.0,0.00013972,2]
[424107528,1780596646000,-500.0,0.00013972,2]
[424107531,1780596646000,-605.23214264,0.00013972,2]
[424107530,1780596646000,-500.0,0.00013972,2]
[424107529,1780596646000,-647.92292035,0.00013972,2]
[424107468,1780596646000,-500.0,0.00013698,2]
[424107500,1780596646000,-1154.13426616,0.000138,2]
[424107502,1780596646000,-151.0,0.000139,2]
[424107532,1780596646000,-500.0,0.00013972,2]
[424107497,1780596646000,-530.591778,0.00013736,2]
[424107499,1780596646000,-530.591778,0.00013736,2]
[424107460,1780596646000,-500.0,0.00013698,2]
[424107462,1780596646000,-500.0,0.00013698,2]
[424107470,1780596646000,-500.30658169,0.00013698,2]
[424107475,1780596646000,-500.0,0.00013698,2]
[424107472,1780596646000,-500.0,0.00013698,2]
[424107473,1780596646000,-500.0,0.00013698,2]
[424107481,1780596646000,-358.99836784,0.00013698,2]
[424107482,1780596646000,-501.15157814,0.00013698,2]
[424107474,1780596646000,-500.0,0.00013698,2]
[424107477,1780596646000,-500.0,0.00013698,2]
[424107476,1780596646000,-500.0,0.00013698,2]
[424107471,1780596646000,-500.0,0.00013698,2]
[424107479,1780596646000,-500.0,0.00013698,2]
[424107480,1780596646000,-500.0,0.00013698,2]
[424107469,1780596646000,-252.1829603,0.00013698,2]
[424107484,1780596646000,-500.29802778,0.00013698,2]
[424107478,1780596646000,-502.41508264,0.00013698,2]
[424107492,1780596646000,-1289.737633,0.00013699,2]
[424107490,1780596646000,-659.61,0.00013698,2]
[424107491,1780596646000,-300.0,0.00013699,2]
[424107493,1780596646000,-1000.0,0.00013699,2]
[424107496,1780596646000,-530.591778,0.00013736,2]
[424107486,1780596646000,-500.0,0.00013698,2]
[424107483,1780596646000,-500.20120716,0.00013698,2]
[424107485,1780596646000,-500.0,0.00013698,2]
[424107495,1780596646000,-2704.58095364,0.00013736,2]
[424107489,1780596646000,-487.0,0.00013698,2]
[424107487,1780596646000,-487.0,0.00013698,2]
[424107494,1780596646000,-1154.13426616,0.000137,2]
[424107488,1780596646000,-487.0,0.00013698,2]
[424107592,1780596647000,-500.0,0.00013972,2]
[424107576,1780596647000,-501.1766805,0.00013972,2]
[424107575,1780596647000,-500.0,0.00013972,2]
[424107578,1780596647000,-500.0,0.00013972,2]
[424107574,1780596647000,-519.21763385,0.00013972,2]
[424107569,1780596647000,-396.85167834,0.00013972,2]
[424107570,1780596647000,-500.0,0.00013972,2]
[424107572,1780596647000,-500.0,0.00013972,2]
[424107573,1780596647000,-500.0,0.00013972,2]
[424107568,1780596647000,-500.0,0.00013972,2]
[424107567,1780596647000,-500.0,0.00013972,2]
[424107571,1780596647000,-500.0,0.00013972,2]
[424107579,1780596647000,-500.0,0.00013972,2]
[424107587,1780596647000,-500.0,0.00013972,2]
[424107580,1780596647000,-502.15531838,0.00013972,2]
[424107585,1780596647000,-500.0,0.00013972,2]
[424107582,1780596647000,-500.0,0.00013972,2]
[424107584,1780596647000,-555.74966597,0.00013972,2]
[424107583,1780596647000,-500.0,0.00013972,2]
[424107597,1780596647000,-500.0,0.00013972,2]
[424107598,1780596647000,-220.60720598,0.00013972,2]
[424107588,1780596647000,-500.93474042,0.00013972,2]
[424107586,1780596647000,-500.0,0.00013972,2]
[424107589,1780596647000,-503.94987929,0.00013972,2]
[424107590,1780596647000,-500.0,0.00013972,2]
[424107591,1780596647000,-500.0,0.00013972,2]
[424107593,1780596647000,-500.0,0.00013972,2]
[424107566,1780596647000,-500.0,0.00013972,2]
[424107581,1780596647000,-500.0,0.00013972,2]
[424107564,1780596647000,-500.91706665,0.00013972,2]
[424107548,1780596647000,-500.0,0.00013972,2]
[424107558,1780596647000,-1000.0,0.00013972,2]
[424107537,1780596647000,-500.0,0.00013972,2]
[424107535,1780596647000,-500.0,0.00013972,2]
[424107536,1780596647000,-500.0,0.00013972,2]
[424107534,1780596647000,-500.0,0.00013972,2]
[424107533,1780596647000,-500.0,0.00013972,2]
[424107539,1780596647000,-500.0,0.00013972,2]
[424107549,1780596647000,-151.0,0.00013972,2]
[424107538,1780596647000,-500.0,0.00013972,2]